bitfinex-derivatives/quotes_ETHF0:USTF0_20241008
["timestamp","ask_amount","ask_price","bid_price","bid_amount"]
[1728345602521,0.8159,2423.9,2423.1,3.2078]
[1728345602720,0.8159,2423.9,2423.4,3.22]
[1728345603612,0.8159,2423.9,2423.2,0.388]
[1728345605123,0.4926,2424.2,2423.4,3.2078]
[1728345605318,0.4926,2424.2,2423.9,3.22]
[1728345605524,0.3966,2424.2,2423.9,3.22]
[1728345606120,0.096,2424.6,2424.0,3.22]
[1728345606318,0.8487,2424.7,2424.5,3.22]
[1728345606512,0.8487,2424.7,2424.1,0.3984]
[1728345606513,0.8487,2424.7,2424.6,3.22]
[1728345607317,0.425,2424.7,2424.6,3.22]
[1728345608724,0.425,2424.7,2424.4,3.22]
[1728345608924,0.4237,2424.6,2424.4,3.22]
[1728345609711,0.4237,2424.6,2424.1,0.7837]
[1728345609912,0.4237,2424.6,2424.5,3.22]
[1728345610214,3.2078,2425.9,2424.5,6.44]
[1728345610441,0.207,2425.8,2425.3,6.4278]
[1728345610612,3.2078,2426.3,2425.4,0.4267]
[1728345610813,1.2369,2426.6,2426.2,3.22]
[1728345611016,1.2369,2426.6,2425.4,4.86910507]
[1728345611017,4.1216,2426.5,2425.7,3.22]
[1728345611221,4.4569,2426.6,2425.5,3.22]
[1728345611222,3.22,2426.4,2425.5,3.22]
[1728345611427,3.22,2426.2,2425.6,3.2078]
[1728345611724,3.2078,2426.0,2425.2,3.22]
[1728345611918,0.4141,2425.9,2425.2,3.22]
[1728345612118,3.2078,2426.4,2425.8,3.22]
[1728345612423,3.2078,2426.4,2425.9,3.22]
[1728345612424,0.4229,2426.3,2425.9,3.22]
[1728345612927,4.1216,2426.2,2425.9,3.22]
[1728345613113,4.1216,2426.2,2425.7,3.22]
[1728345613323,0.386,2426.1,2425.4,3.22]
[1728345613616,0.3958,2426.0,2425.4,3.22]
[1728345614522,0.3958,2426.0,2425.7,3.22]
[1728345614830,0.386,2426.1,2425.9,3.22]
[1728345615018,3.2078,2426.4,2426.0,3.22]
[1728345615218,3.2078,2426.7,2426.3,3.22]
[1728345615426,3.2078,2426.7,2425.7,1.795]
[1728345615427,0.3983,2426.8,2426.6,3.22]
[1728345615722,3.2078,2427.0,2426.6,3.22]
[1728345615928,0.3983,2427.2,2426.9,3.22]
[1728345616424,3.2078,2427.3,2426.9,3.22]
[1728345616927,3.2078,2427.3,2426.7,3.2078]
[1728345616928,3.2078,2427.3,2426.7,3.22]
[1728345618217,3.2078,2427.0,2426.7,3.22]
[1728345618618,4.1208,2426.9,2426.4,3.22]
[1728345618824,0.3879,2426.9,2426.4,3.22]
[1728345620422,0.3879,2426.9,2426.5,3.2078]
[1728345620831,4.5087,2426.9,2426.5,3.2078]
[1728345621018,4.1208,2426.8,2426.5,3.2078]
[1728345621230,4.1208,2426.8,2426.3,0.096]
[1728345621422,3.6079,2426.9,2426.0,6.8446]
[1728345621423,7.7215,2426.7,2426.0,6.9406]
[1728345621729,0.096,2427.2,2426.6,3.22]
[1728345621932,0.096,2427.7,2427.1,6.4278]
[1728345622226,1.30089289,2428.2,2427.4,3.22]
[1728345622430,0.8194,2428.1,2427.4,3.22]
[1728345622727,0.8194,2428.1,2427.2,6.8123]
[1728345622728,4.0394,2428.1,2427.2,6.8123]
[1728345622923,3.22,2427.9,2427.2,3.2078]
[1728345623128,3.2078,2428.0,2427.2,3.2078]
[1728345623129,6.4278,2427.7,2427.2,3.2078]
[1728345623325,4.1192,2427.9,2427.2,3.22]
[1728345623525,4.1192,2428.0,2427.2,3.22]
[1728345623728,3.22,2427.9,2427.0,3.22]
[1728345623927,6.4278,2427.9,2427.0,3.22]
[1728345624728,6.4278,2427.6,2426.9,3.2078]
[1728345624925,1.2375,2427.5,2426.8,0.096]
[1728345625121,3.22,2427.4,2426.6,0.096]
[1728345625426,3.2078,2427.3,2426.6,0.096]
[1728345625628,3.2078,2427.3,2426.5,3.22]
[1728345625629,7.3278,2427.3,2426.5,3.22]
[1728345625828,4.1208,2427.2,2426.5,3.22]
[1728345626033,7.3408,2427.2,2426.3,6.5238]
[1728345626229,3.22,2427.2,2426.3,3.316]
[1728345626434,3.2078,2427.0,2426.3,0.096]
[1728345626730,3.2078,2427.0,2426.2,0.5172]
[1728345626731,1.2497,2426.9,2426.2,0.4062]
[1728345627236,1.2497,2426.9,2426.3,3.2078]
[1728345628528,1.2497,2426.9,2426.6,3.2078]
[1728345628933,4.1208,2426.8,2426.6,3.2078]
[1728345629240,1.2497,2426.9,2426.6,3.2078]
[1728345629532,0.8373,2426.9,2426.6,3.2078]
[1728345630128,3.2078,2427.3,2426.7,0.3902]
[1728345630329,0.41212,2426.9,2426.7,0.3902]
[1728345630529,1.03014,2427.2,2426.7,0.3902]
[1728345630530,0.41212,2426.8,2426.7,0.3902]
[1728345630839,4.12,2427.1,2426.6,3.2078]
[1728345631027,3.2078,2427.3,2426.6,3.6089]
[1728345631229,0.41213,2426.8,2426.6,3.6089]
[1728345631735,0.41214,2426.7,2426.6,3.6089]
[1728345632837,3.2078,2427.3,2426.6,3.6089]
[1728345633029,0.41214,2426.7,2426.6,3.6089]
[1728345633939,4.1208,2426.7,2426.3,3.2078]
[1728345634235,0.41221,2426.3,2426.2,0.4253]
[1728345634434,0.41221,2426.3,2426.2,3.6331]
[1728345635831,0.41221,2426.4,2426.2,3.6331]
[1728345636034,1.03033,2426.8,2426.3,0.4122]
[1728345636227,1.1908,2426.9,2426.5,3.96]
[1728345636432,0.41216,2426.6,2426.5,7.1678]
[1728345636639,0.41216,2426.6,2426.5,3.2078]
[1728345643935,0.41221,2426.3,2426.2,3.6331]
[1728345646141,1.03036,2426.7,2426.2,7.5931]
[1728345646349,0.41219,2426.5,2426.3,0.4122]
[1728345646543,0.41219,2426.5,2426.4,3.22]
[1728345647047,0.41221,2426.3,2426.2,6.8531]
[1728345648141,0.41221,2426.3,2426.2,3.6331]
[1728345648540,0.4122,2426.4,2426.2,0.83752]
[1728345648845,1.03036,2426.7,2426.3,3.22]
[1728345649050,0.41219,2426.5,2426.3,0.41221]
[1728345649239,0.4122,2426.4,2426.2,4.04532]
[1728345650845,0.4122,2426.4,2426.3,3.22]
[1728345651752,1.1908,2426.9,2426.3,7.3416]
[1728345651952,1.1908,2426.9,2426.6,3.22]
[1728345652147,0.22473524,2427.4,2426.6,3.22]
[1728345652148,0.096,2427.6,2426.7,0.4051]
[1728345652350,0.82811,2427.5,2427.3,0.41203]
[1728345652646,0.41201,2427.5,2427.4,3.22]
[1728345652842,0.41201,2427.5,2427.4,3.6251]
[1728345655639,0.7942,2427.8,2427.3,3.22]
[1728345655840,0.41202,2427.4,2427.3,3.22]
[1728345656747,0.41205,2427.2,2427.1,6.815]
[1728345657347,1.42505,2427.5,2427.1,6.815]
[1728345657544,3.2078,2427.9,2427.3,3.22]
[1728345657545,0.41202,2427.4,2427.3,3.22]
[1728345658053,1.03005,2427.5,2426.9,3.316]
[1728345658247,0.41209,2427.0,2426.9,3.22]
[1728345660745,0.41206,2427.2,2426.9,3.6321]
[1728345661059,0.41206,2427.2,2427.1,3.22]
[1728345661662,0.41206,2427.2,2426.6,1.06683097]
[1728345661663,0.41214,2426.7,2426.6,1.06683097]
[1728345661960,0.41214,2426.7,2426.6,4.1208]
[1728345663149,0.4185,2426.9,2426.6,4.53295]
[1728345663356,0.83061,2426.9,2426.8,3.22]
[1728345670154,0.41211,2426.9,2426.8,7.3408]
[1728345670460,0.794,2427.2,2426.8,8.15422]
[1728345670461,0.4121,2427.0,2426.8,8.15422]
[1728345670660,0.4121,2427.0,2426.9,3.22]
[1728345672962,0.41199,2427.6,2427.5,0.412]
[1728345673156,1.02987,2427.9,2427.5,0.412]
[1728345673157,2.22839,2428.1,2427.7,0.41196]
[1728345673363,0.3921,2428.6,2428.1,3.22]
[1728345673561,0.3921,2428.6,2428.5,3.22]
[1728345673760,0.3921,2428.6,2428.5,6.4278]
[1728345673761,0.80393,2428.6,2428.5,6.4278]
[1728345674267,0.3921,2428.6,2428.5,6.4278]
[1728345674567,0.80392,2428.6,2428.5,6.4278]
[1728345675566,0.41182,2428.6,2428.5,6.4278]
[1728345675963,0.41181,2428.7,2428.5,6.4278]
[1728345676159,0.3939,2428.8,2428.5,6.4278]
[1728345676357,0.3939,2428.8,2428.5,3.2078]
[1728345676571,0.41182,2428.6,2428.5,3.2078]
[1728345682071,0.41183,2428.5,2428.4,3.96]
[1728345688074,0.41183,2428.5,2428.4,4.37185]
[1728345688765,0.41183,2428.5,2428.4,3.96]
[1728345691677,0.41175,2429.0,2428.9,0.41176]
[1728345691871,0.41175,2429.0,2428.9,4.37177]
[1728345692071,0.41175,2429.0,2428.9,3.2078]
[1728345692273,3.2078,2429.3,2428.7,3.96]
[1728345692474,0.41174,2429.1,2429.0,3.96]
[1728345692676,0.41173,2429.1,2429.0,3.96]
[1728345692875,0.41173,2429.2,2429.1,0.41173]
[1728345693081,0.7951,2429.4,2429.1,0.41173]
[1728345693277,1.20678,2429.4,2429.3,3.96]
[1728345693674,0.41173,2429.1,2429.0,7.1678]
[1728345695173,0.7951,2429.4,2429.0,11.2846]
[1728345695475,1.2068,2429.4,2429.3,3.96]
[1728345695681,1.2068,2429.4,2429.3,7.1678]
[1728345696670,0.7951,2429.4,2429.3,7.1678]
[1728345696875,0.41167,2429.5,2429.3,7.5795]
[1728345697076,0.41166,2429.6,2429.3,7.5795]
[1728345697581,0.7961,2429.8,2429.3,7.5795]
[1728345697782,0.41166,2429.5,2429.4,0.3868]
[1728345697983,0.7961,2429.8,2429.3,7.1678]
[1728345698278,0.41168,2429.4,2429.3,7.1678]
[1728345698473,0.41168,2429.4,2429.3,6.4178]
[1728345698673,0.41167,2429.5,2429.3,10.94549]
[1728345698873,0.41167,2429.5,2429.4,3.21]
[1728345699074,0.4046,2429.8,2429.4,7.326]
[1728345699274,0.83227,2430.1,2429.7,3.21]
[1728345699481,0.41157,2430.1,2430.0,3.21]
[1728345700282,0.41156,2430.1,2430.0,3.21]
[1728345700675,4.23656,2430.5,2430.0,10.5352]
[1728345700888,0.41149,2430.5,2430.4,3.21]
[1728345701377,0.4181,2430.6,2430.4,3.21]
[1728345701687,0.41149,2430.5,2430.4,3.21]
[1728345702087,4.52589,2430.5,2430.4,3.21]
[1728345702880,4.1144,2430.5,2430.3,3.21]
[1728345703080,0.82411,2430.4,2430.3,3.21]
[1728345707081,0.41151,2430.4,2430.3,3.21]
[1728345707876,0.41151,2430.4,2430.3,3.62152]
[1728345708277,0.41151,2430.4,2430.3,4.01932]
[1728345708675,0.41151,2430.4,2430.3,3.6078]
[1728345710182,0.41151,2430.5,2430.3,4.01933]
[1728345710381,0.41151,2430.5,2430.4,3.21]
[1728345716892,0.41151,2430.5,2430.4,7.3244]
[1728345718886,0.41151,2430.5,2430.4,3.21]
[1728345719088,1.0287,2430.6,2430.3,3.21]
[1728345719287,0.41151,2430.4,2430.3,3.21]
[1728345724899,0.41151,2430.4,2430.3,3.62153]
[1728345725096,0.41151,2430.4,2430.3,7.73593]
[1728345726098,0.41151,2430.4,2430.3,7.3244]
[1728345727904,0.41151,2430.4,2430.3,3.21]
[1728345728099,0.41151,2430.4,2430.3,7.3244]
[1728345728301,0.41151,2430.4,2430.3,3.21]
[1728345728501,0.41151,2430.4,2430.3,7.3244]
[1728345729205,0.41151,2430.4,2430.3,3.21]
[1728345730005,3.2078,2430.7,2430.1,3.2078]
[1728345730194,1.02887,2430.2,2429.6,0.5195]
[1728345730501,1.02887,2430.2,2429.7,3.21]
[1728345730502,0.41161,2429.8,2429.7,3.21]
[1728345733500,0.41161,2429.8,2429.5,3.21]
[1728345733501,4.116,2429.8,2429.5,3.21]
[1728345733697,0.41168,2429.4,2429.3,3.21]
[1728345733898,0.41175,2429.0,2428.9,6.4178]
[1728345734104,4.52855,2429.0,2428.9,3.21]
[1728345734295,0.41178,2428.8,2428.7,3.21]
[1728345734703,4.91838,2428.8,2428.7,3.21]
[1728345734905,0.80078,2428.8,2428.7,3.21]
[1728345735105,4.91838,2428.8,2428.7,3.21]
[1728345735999,0.80078,2428.8,2428.7,3.21]
[1728345737201,3.2078,2429.5,2428.7,10.5376]
[1728345737503,0.4132,2429.7,2429.0,3.2078]
[1728345737504,0.4155,2429.4,2429.0,3.2078]
[1728345737704,0.41173,2429.2,2429.0,3.61954]
[1728345738203,0.41173,2429.1,2429.0,3.2078]
[1728345738413,0.41173,2429.1,2429.0,3.21]
[1728345738702,0.41173,2429.1,2428.9,3.5924]
[1728345738703,0.41175,2429.0,2428.9,3.2078]
[1728345738904,0.41177,2428.9,2428.8,3.21]
[1728345739108,0.82067,2428.9,2428.8,3.21]
[1728345740102,4.5257,2428.9,2428.6,3.2078]
[1728345740305,0.4118,2428.7,2428.6,3.2078]
[1728345740507,0.4118,2428.7,2428.6,6.4178]
[1728345740708,0.41179,2428.8,2428.6,10.5354]
[1728345740903,0.4089,2429.4,2428.7,6.42]
[1728345741113,0.82058,2429.4,2429.3,3.21]
[1728345741706,0.41168,2429.4,2429.3,3.21]
[1728345741906,0.41168,2429.4,2429.3,6.4178]
[1728345742807,0.41168,2429.4,2429.1,3.21]
[1728345742808,0.41171,2429.2,2429.1,3.21]
[1728345743913,1.02913,2429.6,2429.1,7.3268]
[1728345744110,0.41169,2429.4,2429.3,3.2078]
[1728345744814,0.41169,2429.4,2429.3,6.4178]
[1728345745010,0.419,2429.6,2429.3,6.4178]
[1728345745208,0.83065,2429.6,2429.5,3.21]
[1728345745414,0.41165,2429.6,2429.5,3.21]
[1728345745614,0.3864,2430.0,2429.5,7.326]
[1728345745815,0.3864,2430.0,2429.8,3.21]
[1728345745816,0.4116,2429.9,2429.8,3.21]
[1728345746513,1.41538,2430.0,2429.6,6.4178]
[1728345746710,0.41163,2429.7,2429.6,6.4178]
[1728345748016,0.3864,2430.0,2429.6,6.4178]
[1728345748220,3.5935,2430.3,2429.9,3.2078]
[1728345748221,1.41454,2430.3,2429.9,3.2078]
[1728345748410,1.41454,2430.3,2430.2,3.21]
[1728345748411,0.79723,2430.3,2430.2,3.21]
[1728345748811,4.91243,2430.3,2430.2,3.21]
[1728345749017,0.79723,2430.3,2430.2,3.21]
[1728345749218,0.41153,2430.3,2430.2,3.21]
[1728345750811,0.41153,2430.3,2430.2,6.4178]
[1728345751111,0.3953,2430.4,2430.2,6.4178]
[1728345751315,0.41152,2430.4,2430.2,6.82933]
[1728345751613,0.41152,2430.4,2430.3,0.83623]
[1728345751920,0.8255,2430.7,2430.2,6.4178]
[1728345752109,0.41158,2430.0,2429.9,6.4178]
[1728345752312,0.41158,2430.0,2429.9,3.2078]
[1728345752711,0.41158,2430.0,2429.8,3.21]
[1728345752712,0.4116,2429.9,2429.8,3.21]
[1728345755814,0.4023,2430.2,2429.8,3.21]
[1728345756115,0.4023,2430.2,2430.0,3.21]
[1728345756116,0.81386,2430.2,2430.0,3.21]
[1728345756315,0.41154,2430.3,2430.1,0.41155]
[1728345756517,0.41154,2430.3,2430.2,3.21]
[1728345758937,0.41158,2430.0,2429.9,6.4178]
[1728345759134,0.4164,2430.2,2429.9,6.82939]
[1728345759334,0.82795,2430.2,2430.1,3.21]
[1728345760041,0.82795,2430.2,2429.9,3.21]
[1728345760042,0.41158,2430.0,2429.9,3.21]
[1728345761244,0.41161,2429.8,2429.7,3.21]
[1728345772164,0.41161,2429.8,2429.7,7.73763]
[1728345772853,0.41161,2429.8,2429.7,7.326]
[1728345773150,0.41161,2429.8,2429.7,3.21]
[1728345773449,0.41161,2429.8,2429.7,7.326]
[1728345774451,0.41159,2430.0,2429.7,7.326]
[1728345774644,0.41159,2430.0,2429.4,1.41219]
[1728345774645,0.41157,2430.1,2430.0,0.41158]
[1728345775444,0.41158,2430.1,2429.9,6.82938]
[1728345775650,1.4453,2430.2,2429.9,6.82938]
[1728345775651,0.41158,2430.0,2429.9,6.82938]
[1728345777951,0.82795,2430.2,2430.1,0.41156]
[1728345778154,0.41153,2430.4,2430.1,3.21]
[1728345778355,0.41153,2430.4,2430.3,3.62153]
[1728345778853,0.41153,2430.4,2430.3,4.02213]
[1728345779049,0.41153,2430.4,2430.3,3.6106]
[1728345779360,0.41153,2430.4,2430.3,0.4006]
[1728345783380,0.4072,2430.7,2430.3,7.725]
[1728345783656,0.4072,2430.7,2430.3,4.02211]
[1728345783657,1.43588,2430.7,2430.3,4.02211]
[1728345783961,0.41151,2430.4,2430.3,4.02211]
[1728345784356,0.41151,2430.4,2430.3,8.13651]
[1728345785352,1.43588,2430.7,2430.3,7.725]
[1728345785553,0.4115,2430.5,2430.4,0.4115]
[1728345785759,0.4115,2430.5,2430.4,3.6193]
[1728345786062,0.4115,2430.5,2430.4,3.2078]
[1728345788260,0.4115,2430.5,2430.4,3.61931]
[1728345788658,0.4115,2430.5,2430.4,3.2078]
[1728345792173,0.4115,2430.5,2430.4,6.4178]
[1728345796570,0.4115,2430.5,2430.4,3.21]
[1728345798469,0.81867,2430.7,2430.5,0.41148]
[1728345798666,0.81866,2430.7,2430.6,3.21]
[1728345798971,0.81866,2430.7,2430.6,3.2078]
[1728345800773,0.41148,2430.6,2430.5,3.21]
[1728345803772,0.4072,2430.7,2430.5,3.62149]
[1728345803773,0.81867,2430.7,2430.5,3.62149]
[1728345804072,0.81866,2430.7,2430.6,3.2078]
[1728345807180,0.81866,2430.7,2430.5,3.21]
[1728345807181,0.41148,2430.6,2430.5,3.21]
[1728345807378,0.41151,2430.4,2430.3,3.2078]
[1728345808074,1.02873,2430.6,2430.2,3.21]
[1728345808075,0.41153,2430.3,2430.2,3.21]
[1728345808275,0.81593,2430.3,2430.2,3.21]
[1728345808477,0.81593,2430.3,2430.2,7.3252]
[1728345808975,0.81593,2430.3,2430.2,3.21]
[1728345809577,0.41155,2430.2,2430.1,0.4065]
[1728345810079,0.41155,2430.2,2430.1,4.5217]
[1728345811275,0.41155,2430.2,2430.1,4.93326]
[1728345811472,0.41155,2430.2,2430.1,4.5217]
[1728345812378,0.41155,2430.2,2430.1,4.93326]
[1728345813076,0.4044,2430.3,2430.2,0.41155]
[1728345813276,0.41152,2430.4,2430.3,0.41152]
[1728345813578,0.41151,2430.5,2430.4,0.41151]
[1728345813883,0.41151,2430.5,2430.4,3.62151]
[1728345814777,0.41151,2430.5,2430.4,3.21]
[1728345815984,0.41151,2430.5,2430.4,3.62151]
[1728345816170,0.41151,2430.5,2430.4,3.21]
[1728345818277,1.02866,2430.7,2430.4,7.7359]
[1728345818278,0.41149,2430.6,2430.4,7.7359]
[1728345818576,0.41149,2430.5,2430.4,3.6215]
[1728345818773,1.02866,2430.7,2430.4,3.6215]
[1728345818973,0.41149,2430.5,2430.4,3.21]
[1728345819480,0.41149,2430.5,2430.4,7.3244]
[1728345819879,0.41149,2430.5,2430.4,3.21]
[1728345820186,0.41149,2430.5,2430.4,3.62151]
[1728345820382,0.41149,2430.5,2430.4,3.21]
[1728345820777,0.41149,2430.5,2430.4,3.62151]
[1728345821178,0.41149,2430.5,2430.4,3.21]
[1728345822184,0.41149,2430.5,2430.4,3.62151]
[1728345822381,0.41148,2430.6,2430.4,3.6215]
[1728345822594,0.41148,2430.6,2430.5,0.41149]
[1728345822779,1.21718856,2430.8,2430.4,3.21]
[1728345823084,0.3954,2431.1,2430.7,3.21]
[1728345823291,0.096,2431.7,2431.0,6.4178]
[1728345823590,0.41133,2431.5,2431.4,3.21]
[1728345824884,0.41134,2431.4,2431.3,6.8057]
[1728345827492,1.43271,2431.6,2431.3,7.21705]
[1728345827493,0.41133,2431.5,2431.3,7.21705]
[1728345827679,0.81572,2431.6,2431.4,3.62134]
[1728345828284,0.41133,2431.5,2431.4,3.62134]
[1728345828988,0.81571,2431.6,2431.4,3.62134]
[1728345829384,0.81571,2431.6,2431.4,3.21]
[1728345829584,0.4044,2431.6,2431.5,0.41133]
[1728345829890,0.81571,2431.6,2431.5,0.41133]
[1728345830289,0.81571,2431.6,2431.4,3.62133]
[1728345830493,0.41134,2431.4,2431.3,3.2078]
[1728345830883,0.3979,2431.5,2431.1,3.21]
[1728345831195,0.41138,2431.2,2431.1,3.21]
[1728345831396,0.41138,2431.2,2431.1,6.4178]
[1728345831593,0.83398,2431.2,2431.1,3.21]
[1728345832191,4.94758,2431.2,2431.1,3.21]
[1728345833388,0.83398,2431.2,2431.1,3.21]
[1728345835586,4.94758,2431.2,2431.1,3.21]
[1728345837208,0.41143,2430.9,2430.8,6.4178]
[1728345837399,0.41146,2430.7,2430.6,3.6073]
[1728345837906,0.41146,2430.7,2430.6,7.7217]
[1728345838196,1.224,2430.8,2430.6,8.13318]
[1728345838401,0.3911,2430.8,2430.7,0.41146]
[1728345838590,0.41142,2431.0,2430.8,0.41143]
[1728345838792,0.41142,2431.0,2430.9,3.21]
[1728345855207,0.41143,2430.9,2430.8,3.2078]
[1728345855411,1.02852,2431.1,2430.4,3.3038]
[1728345855412,1.02865,2430.8,2430.4,3.3038]
[1728345855612,0.41151,2430.4,2430.3,3.21]
[1728345856313,0.3937,2430.7,2430.3,3.21]
[1728345856506,0.41148,2430.6,2430.4,0.4115]
[1728345856809,0.80516,2430.7,2430.6,1.48]
[1728345857205,4.91956,2430.7,2430.6,1.48]
[1728345858012,0.80516,2430.7,2430.6,1.48]
[1728345858408,0.41149,2430.6,2430.5,3.21]
[1728345859008,0.41147,2430.7,2430.5,3.62149]
[1728345859204,0.4031,2430.8,2430.7,0.41146]
[1728345859509,0.41142,2431.0,2430.8,0.41143]
[1728345859820,0.41141,2431.0,2430.9,3.21]
[1728345860716,0.82601,2431.0,2430.9,3.21]
[1728345866118,0.81463399,2431.3,2430.9,3.21]
[1728345866316,2.26255399,2431.3,2430.9,3.62141]
[1728345866517,0.41141,2431.1,2430.9,3.62141]
[1728345866919,0.41141,2431.1,2431.0,0.41141]
[1728345867117,1.23413399,2431.3,2430.9,3.21]
[1728345867314,1.02845,2431.2,2430.7,6.82925]
[1728345867512,0.41144,2430.8,2430.7,6.82925]
[1728345868019,0.41144,2430.8,2430.7,10.94285]
[1728345868417,0.41144,2430.8,2430.7,6.82925]
[1728345868616,0.41144,2430.8,2430.7,6.4178]
[1728345868817,0.41144,2430.8,2430.7,6.82926]
[1728345869419,0.41144,2430.8,2430.7,6.4178]
[1728345869620,0.41144,2430.8,2430.5,2.0685]
[1728345869621,0.41148,2430.6,2430.5,3.21]
[1728345869821,0.3989,2430.8,2430.5,3.21]
[1728345870118,0.3989,2430.8,2430.6,0.41147]
[1728345870119,0.41147,2430.7,2430.6,0.41147]
[1728345870417,0.41148,2430.6,2430.5,3.21]
[1728345871118,0.41151,2430.4,2430.3,6.4178]
[1728345871520,0.41151,2430.4,2430.3,6.82933]
[1728345871822,0.41151,2430.4,2430.3,6.4178]
[1728345872121,0.82,2430.5,2430.1,3.21]
[1728345872325,0.41155,2430.2,2430.1,3.21]
[1728345873628,0.41158,2430.0,2429.9,6.8443]
[1728345873818,0.41158,2430.0,2429.9,3.2078]
[1728345874013,0.41161,2429.8,2429.7,3.21]
[1728345874715,0.3994,2430.1,2429.7,3.21]
[1728345874915,0.81378402,2430.4,2429.9,3.21]
[1728345875226,0.81378402,2430.4,2430.2,6.4178]
[1728345875227,0.3994,2430.4,2430.2,6.4178]
[1728345875529,0.81092,2430.4,2430.2,6.82934]
[1728345875922,0.41153,2430.3,2430.2,6.4178]
[1728345876121,0.41153,2430.3,2430.2,3.21]
[1728345876525,0.41153,2430.3,2430.2,6.4178]
[1728345879624,0.41153,2430.3,2430.2,3.2078]
[1728345882428,0.41153,2430.3,2430.2,4.6878]
[1728345887833,0.41153,2430.3,2430.2,1.48]
[1728345888428,3.2078,2430.9,2430.2,5.5952]
[1728345888429,0.41149,2430.6,2430.2,5.5952]
[1728345888628,0.41149,2430.6,2430.5,1.48]
[1728345888629,0.41148,2430.6,2430.5,1.48]
[1728345888928,0.41147,2430.7,2430.5,4.6878]
[1728345889122,0.41147,2430.7,2430.6,1.899]
[1728345889326,0.79725,2430.8,2430.6,1.899]
[1728345889628,0.41145,2430.8,2430.6,1.899]
[1728345889820,0.41145,2430.8,2430.7,0.41146]
[1728345890029,1.02855,2431.0,2430.7,0.41146]
[1728345890225,1.02855,2431.0,2430.9,1.48]
[1728345890226,0.41141,2431.0,2430.9,1.48]
[1728345890428,2.23106,2431.2,2430.9,1.48]
[1728345890634,0.4114,2431.1,2430.9,1.89142]
[1728345891831,1.2026,2431.2,2430.9,1.89142]
[1728345892032,0.41141,2431.0,2430.9,1.89142]
[1728345892434,0.41141,2431.0,2430.9,3.62142]
[1728345892631,0.41141,2431.0,2430.9,3.21]
[1728345892832,0.41143,2430.9,2430.8,3.2078]
[1728345893134,1.02852,2431.1,2430.5,3.2078]
[1728345893135,0.41148,2430.6,2430.5,3.2078]
[1728345893524,4.52588,2430.6,2430.5,3.2078]
[1728345893726,0.41156,2430.1,2430.0,5.2812]
[1728345893932,0.41156,2430.1,2430.0,3.5992]
[1728345894134,1.02876,2430.5,2430.0,6.807]
[1728345894431,0.41155,2430.2,2430.0,7.21857]
[1728345894632,0.41156,2430.1,2430.0,6.807]
[1728345894940,0.41156,2430.1,2430.0,3.2078]
[1728345895232,0.4116,2429.9,2429.6,7.21863]
[1728345895533,1.02894,2430.1,2429.6,6.807]
[1728345896034,0.41163,2429.7,2429.6,6.807]
[1728345896225,0.41163,2429.7,2429.6,3.597]
[1728345896931,4.52763,2429.7,2429.6,3.2078]
[1728345897238,0.41163,2429.7,2429.6,3.2078]
[1728345897433,4.116,2429.7,2429.6,3.2078]
[1728345897636,0.41162,2429.8,2429.6,3.61945]
[1728345897832,0.41162,2429.8,2429.7,0.41163]
[1728345898037,0.41162,2429.8,2429.7,4.02643]
[1728345898336,0.41162,2429.8,2429.7,3.6148]
[1728345898929,0.4211,2429.9,2429.7,3.6148]
[1728345899138,0.4211,2429.9,2429.8,0.41161]
[1728345899340,0.83271,2429.9,2429.7,4.02642]
[1728345900041,0.41161,2429.8,2429.7,3.6148]
[1728345900630,0.41161,2429.8,2429.7,3.21]
[1728345900831,0.41163,2429.7,2429.6,3.2078]
[1728345901230,0.4211,2429.9,2429.6,3.61944]
[1728345901231,0.41162,2429.8,2429.6,3.61944]
[1728345901431,0.41162,2429.8,2429.6,3.2078]
[1728345901627,0.8327,2429.9,2429.7,3.62162]
[1728345901833,0.4116,2429.9,2429.7,4.02462]
[1728345902033,0.41161,2429.8,2429.7,3.613]
[1728345903341,0.4116,2429.9,2429.7,4.02462]
[1728345903542,1.45354,2430.1,2429.8,0.4116]
[1728345903543,0.41159,2430.0,2429.8,0.4116]
[1728345903839,0.41158,2430.0,2429.7,3.996]
[1728345904041,0.4246,2430.1,2429.7,4.40762]
[1728345904231,0.4116,2429.9,2429.7,4.40762]
[1728345905031,0.4246,2430.1,2429.7,3.996]
[1728345905231,0.4246,2430.1,2430.0,3.62158]
[1728345905635,0.83616,2430.1,2430.0,3.62158]
[1728345906040,0.83616,2430.1,2430.0,3.21]
[1728345907637,1.02871,2430.6,2430.0,3.21]
[1728345907838,1.02871,2430.6,2430.3,3.21]
[1728345907839,0.41151,2430.4,2430.3,3.21]
[1728345908045,0.41151,2430.4,2430.3,3.6128]
[1728345908246,1.2106,2430.7,2430.3,3.6128]
[1728345908540,1.02851,2431.1,2430.5,3.21]
[1728345908739,0.41143,2430.9,2430.8,3.21]
[1728345909129,1.2106,2431.2,2430.7,3.21]